bitfinex-derivatives/quotes_ETHF0:USTF0_20260222
["timestamp","ask_amount","ask_price","bid_price","bid_amount"]
[1771775713760,40.8,1956.4,1955.7,0.57587952]
[1771775714661,40.8,1956.4,1955.4,1.17194216]
[1771775714662,1.17194216,1956.3,1955.5,0.58860334]
[1771775714855,1.17194216,1956.1,1955.5,0.58860334]
[1771775720364,0.55214226,1956.0,1955.5,0.58860334]
[1771775730379,0.55214226,1955.8,1955.3,0.58860334]
[1771775739691,0.55214226,1955.8,1955.1,0.57496666]
[1771775743692,0.55214226,1955.8,1955.1,0.00539372]
[1771775743885,0.55214226,1955.8,1955.1,0.57496666]
[1771775760310,0.55214226,1955.8,1955.2,0.56957294]
[1771775773127,0.55214226,1955.8,1955.1,8.01050858]
[1771775773324,0.55214226,1955.8,1955.1,8.58514199]
[1771775774225,0.55214226,1955.8,1955.2,0.57463341]
[1771775777531,0.55214226,1955.8,1955.1,8.57185213]
[1771775781331,0.55214226,1955.8,1955.1,0.56673727]
[1771775783133,0.55214226,1955.8,1955.3,0.56134355]
[1771775792135,0.55214226,1955.8,1955.5,0.56134355]
[1771775792335,0.59755345,1956.2,1955.5,0.56134355]
[1771775792536,0.59755345,1956.0,1955.5,0.56134355]
[1771775823070,0.60549224,1956.2,1955.5,0.56134355]
[1771775823266,0.60549224,1956.2,1955.7,0.57559858]
[1771775823669,0.60549224,1956.2,1955.6,1.74732562]
[1771775824676,0.60549224,1956.2,1955.6,0.57559858]
[1771775832783,40.8,1956.4,1955.4,0.60196003]
[1771775832784,0.58498247,1955.8,1955.4,0.60196003]
[1771775841086,0.56434455,1955.6,1955.2,8.55697917]
[1771775841986,0.56434455,1955.6,1955.2,0.55186431]
[1771775843484,0.56434455,1955.8,1955.2,0.55186431]
[1771775845789,0.56434455,1955.8,1955.1,0.55725803]
[1771775845990,0.56434455,1955.6,1955.1,0.55725803]
[1771775848591,1.17216073,1956.0,1955.1,0.55725803]
[1771775848791,0.56434455,1955.9,1955.1,0.55725803]
[1771775862200,0.5656435,1955.7,1955.1,0.55725803]
[1771775862499,0.5656435,1955.7,1955.1,0.00539372]
[1771775880915,0.5656435,1955.7,1954.8,8.59809881]
[1771775881219,0.5656435,1955.5,1954.8,0.59298395]
[1771775881919,0.5656435,1955.5,1954.8,0.59830213]
[1771775888922,0.5656435,1955.5,1954.8,0.00531818]
[1771775889623,0.5656435,1955.5,1954.8,0.58827342]
[1771775890425,0.5656435,1955.5,1954.8,0.00531818]
[1771775890630,0.58672687,1955.3,1954.8,0.00531818]
[1771775893434,0.58672687,1955.3,1954.5,1.26359013]
[1771775893836,40.8,1955.2,1954.5,1.84654537]
[1771775894138,0.58672687,1955.1,1954.5,1.84654537]
[1771775894336,0.5906912,1955.1,1954.5,1.85209503]
[1771775894736,0.5906912,1955.1,1954.5,1.26913979]
[1771775897742,0.5906912,1955.1,1954.5,0.00554966]
[1771775899848,0.5906912,1955.1,1954.2,0.54673692]
[1771775900747,0.5906912,1955.1,1954.2,0.55260658]
[1771775901249,0.57079425,1954.9,1954.2,0.55260658]
[1771775905049,0.57079425,1954.9,1954.2,0.00586966]
[1771775905244,0.57079425,1954.9,1954.2,0.55260658]
[1771775908155,0.57079425,1955.0,1954.2,0.55260658]
[1771775909243,0.57079425,1954.7,1954.2,0.55260658]
[1771775912356,0.57079425,1954.9,1954.2,0.55260658]
[1771775912657,0.57079425,1954.9,1954.4,0.54673692]
[1771775920166,0.57079425,1954.9,1954.2,1.76547349]
[1771775920565,0.57079425,1954.9,1954.3,0.58629701]
[1771775930173,0.55635703,1954.7,1954.3,0.58629701]
[1771775930474,0.55635703,1954.5,1954.0,8.01620462]
[1771775930868,0.55635703,1954.5,1954.0,8.00511486]
[1771775931069,1.17330682,1954.8,1952.7,0.01108976]
[1771775931070,0.60039114,1953.8,1952.7,0.01108976]
[1771775931372,2.34661364,1953.9,1952.7,0.01108976]
[1771775931373,0.60039114,1953.7,1953.1,0.01108976]
[1771775931575,1.77955128,1953.7,1953.1,0.01108976]
[1771775931775,0.60035321,1953.6,1952.9,0.01116561]
[1771775932076,0.60035321,1953.4,1952.9,0.01116561]
[1771775932276,0.80013043,1953.3,1952.9,0.01116561]
[1771775932473,0.80013043,1953.2,1952.9,0.01116561]
[1771775932676,0.80013043,1953.1,1952.9,0.01116561]
[1771775932875,1.820446,1953.5,1952.8,0.58629701]
[1771775933179,1.44726115,1953.4,1952.8,0.58629701]
[1771775933375,0.80012197,1953.3,1952.8,0.58629701]
[1771775933679,0.80012197,1953.2,1952.9,0.58629701]
[1771775933880,0.64121032,1953.5,1952.9,0.58629701]
[1771775934074,1.4413325,1953.4,1952.9,0.58629701]
[1771775934275,0.80012218,1953.3,1952.9,0.58629701]
[1771775934469,0.64121032,1953.4,1952.9,0.58629701]
[1771775934470,0.80012218,1953.2,1952.9,0.58629701]
[1771775934676,0.64121032,1953.4,1952.8,1.17330682]
[1771775934977,0.80012302,1953.3,1952.8,1.17330682]
[1771775935176,0.80012302,1953.2,1952.8,1.17330682]
[1771775935372,0.64121032,1953.4,1952.8,1.17330682]
[1771775935576,1.78707779,1953.3,1952.8,1.17330682]
[1771775935780,0.80012308,1953.2,1952.8,1.17330682]
[1771775935982,0.98695471,1953.3,1952.7,0.00613162]
[1771775936175,0.80012317,1953.2,1952.8,0.03357785]
[1771775936478,0.98695471,1953.3,1952.8,0.03357785]
[1771775939481,0.55635703,1952.9,1952.2,0.67539607]
[1771775939786,0.00585332,1953.7,1952.8,0.58629701]
[1771775939787,0.55635703,1953.6,1952.8,0.58629701]
[1771775939988,0.00585332,1953.7,1953.1,0.58629701]
[1771775940686,0.90478748,1953.6,1953.1,0.59140243]
[1771775941182,0.9106408,1953.7,1953.1,0.59140243]
[1771775941776,0.00585332,1953.7,1953.1,0.59140243]
[1771775941983,0.90901567,1953.9,1953.3,0.18780464]
[1771775942183,0.90901567,1953.9,1953.1,0.14893809]
[1771775942889,0.91259973,1953.9,1953.1,0.14893809]
[1771775943982,0.91259973,1953.9,1953.3,0.07714886]
[1771775944179,0.92079994,1954.0,1953.5,0.07714886]
[1771775944785,0.92079994,1954.0,1953.2,0.0391158]
[1771775945284,0.92697012,1954.0,1953.2,0.0391158]
[1771775946585,2.10027694,1954.0,1953.2,0.0391158]
[1771775946894,0.90562736,1953.9,1953.2,0.0391158]
[1771775948389,0.90562736,1953.9,1953.2,1.17330682]
[1771775954290,0.77901242,1953.8,1953.2,1.17330682]
[1771775954495,0.8918484,1953.8,1953.2,1.17330682]
[1771775955499,0.89185046,1953.3,1952.7,1.42941682]
[1771775955797,0.77931799,1953.7,1953.1,1.17330682]
[1771775955798,0.63255295,1953.7,1953.1,1.17330682]
[1771775956396,0.63255295,1953.7,1953.1,1.17884403]
[1771775956894,0.63255295,1953.9,1953.3,1.17330682]
[1771775957094,0.00617018,1954.0,1953.4,0.53645863]
[1771775957294,1.31440059,1953.9,1953.4,0.53645863]
[1771775957501,0.55957306,1953.9,1953.4,0.53645863]
[1771775959500,0.75600982,1953.8,1953.4,0.53645863]
[1771775959701,0.55957306,1953.9,1953.4,0.53645863]
[1771775959898,0.75600952,1953.8,1953.4,0.53645863]
[1771775960094,0.55957306,1953.9,1953.4,0.53645863]
[1771775960401,0.75603677,1953.8,1953.4,0.53645863]
[1771775960600,0.55957306,1953.9,1953.4,0.53645863]
[1771775960795,1.31607906,1953.8,1953.4,0.53645863]
[1771775961091,0.55957306,1953.8,1953.4,0.53645863]
[1771775961602,0.55957306,1953.9,1953.4,0.53645863]
[1771775961803,0.75226101,1953.8,1953.4,0.53645863]
[1771775962103,0.55957306,1953.9,1953.4,0.53645863]
[1771775962399,0.75226493,1953.8,1953.4,0.53645863]
[1771775962600,0.55957306,1953.9,1953.4,0.53645863]
[1771775962802,0.752315,1953.8,1953.4,0.53645863]
[1771775963001,3.06e-06,1953.9,1953.4,0.53645863]
[1771775963202,0.75231468,1953.8,1953.4,0.53645863]
[1771775963402,3.06e-06,1953.9,1953.4,0.53645863]
[1771775963603,0.75083206,1953.8,1953.4,0.53645863]
[1771775963896,3.06e-06,1953.9,1953.4,0.53645863]
[1771775964104,0.75083282,1953.8,1953.4,0.53645863]
[1771775964302,3.06e-06,1953.9,1953.4,0.53645863]
[1771775964504,1.30313111,1953.8,1953.4,0.53645863]
[1771775964803,0.55957306,1953.8,1953.4,0.53645863]
[1771775965796,0.74371607,1953.7,1953.4,0.53645863]
[1771775966098,0.00617018,1954.0,1953.4,0.53645863]
[1771775966099,0.56574324,1954.0,1953.4,0.53645863]
[1771775966298,0.55957306,1953.8,1953.4,0.53645863]
[1771775966498,0.74373463,1953.7,1953.4,0.53645863]
[1771775966698,0.55957306,1953.8,1953.4,0.53645863]
[1771775966898,0.73960993,1953.7,1953.4,0.53645863]
[1771775967100,0.55957306,1953.8,1953.4,0.53645863]
[1771775967399,0.73962938,1953.7,1953.4,0.53645863]
[1771775967599,0.55957306,1953.8,1953.4,0.53645863]
[1771775967803,0.73985798,1953.7,1953.4,0.53645863]
[1771775968003,0.55957306,1953.8,1953.4,0.53645863]
[1771775968204,0.73985798,1953.7,1953.4,0.53645863]
[1771775968500,0.55957306,1953.8,1953.4,0.53645863]
[1771775968700,0.74018427,1953.7,1953.4,0.53645863]
[1771775968898,0.56574324,1954.0,1953.4,0.53645863]
[1771775969096,1.29973812,1953.9,1953.4,0.53645863]
[1771775969403,0.74016506,1953.8,1953.4,0.53645863]
[1771775969703,0.74016506,1953.7,1953.4,0.53645863]
[1771775969905,0.55957306,1953.9,1953.4,0.53645863]
[1771775970099,0.72258507,1953.8,1953.4,0.53645863]
[1771775970300,0.72258507,1953.7,1953.4,0.53645863]
[1771775970502,0.55957306,1953.9,1953.4,0.53645863]
[1771775970701,1.27655212,1953.8,1953.4,0.53645863]
[1771775971002,0.71697906,1953.7,1953.4,0.53645863]
[1771775971196,0.55957306,1953.8,1953.4,0.53645863]
[1771775971398,0.71714111,1953.7,1953.4,0.53645863]
[1771775971599,0.55957306,1953.8,1953.4,0.53645863]
[1771775971896,0.71714111,1953.7,1953.4,0.53645863]
[1771775972102,0.55957306,1953.8,1953.4,0.53645863]
[1771775972304,0.71724964,1953.7,1953.4,0.53645863]
[1771775972502,0.55957306,1953.8,1953.4,0.53645863]
[1771775972703,0.71724964,1953.7,1953.4,0.53645863]
[1771775972902,0.55957306,1953.8,1953.4,0.53645863]
[1771775973103,0.71724964,1953.7,1953.4,0.53645863]
[1771775973404,0.55957306,1953.8,1953.4,0.53645863]
[1771775973601,0.71739832,1953.7,1953.4,0.53645863]
[1771775973801,0.55957306,1953.8,1953.4,0.53645863]
[1771775974005,1.27697138,1953.7,1953.4,0.53645863]
[1771775974203,0.55957306,1953.7,1953.4,0.53645863]
[1771775979502,0.55957306,1953.7,1953.3,0.59787378]
[1771775984003,0.56498821,1953.9,1953.3,0.59787378]
[1771775984205,0.00617018,1954.0,1953.3,0.59787378]
[1771775985408,0.57115839,1954.0,1953.3,0.59787378]
[1771775991215,0.57115839,1954.0,1953.5,0.59787378]
[1771775994417,0.57115839,1954.0,1953.4,0.25604]
[1771775994617,0.57115839,1954.0,1953.4,0.85391378]
[1771775996616,0.57115839,1954.0,1953.2,0.59787378]
[1771776004224,0.57115839,1954.0,1953.1,0.60341099]
[1771776005121,1.17421699,1953.7,1953.1,0.00553721]
[1771776005315,0.56498821,1953.6,1952.9,0.59787378]
[1771776006225,0.56498821,1953.6,1952.9,0.60239473]
[1771776009025,0.60214669,1953.5,1952.9,0.00452095]
[1771776010019,0.60214669,1953.5,1952.9,0.59647352]
[1771776024644,0.57456531,1953.3,1952.8,0.25611]
[1771776025146,0.57456531,1953.3,1952.9,0.60438115]
[1771776025447,0.57456531,1953.3,1953.0,0.86049115]
[1771776025647,0.57456531,1953.3,1953.0,0.61075486]
[1771776025839,0.57456531,1953.3,1953.0,0.26248371]
[1771776029953,0.57456531,1953.5,1953.1,0.60438115]
[1771776032458,0.57456531,1953.8,1953.3,0.60438115]
[1771776033550,0.57456531,1953.8,1953.2,0.86049115]
[1771776035655,0.57456531,1953.7,1953.2,0.25611]
[1771776037353,0.57456531,1953.7,1953.0,0.61075486]
[1771776037553,0.57456531,1953.7,1953.1,0.25611]
[1771776038655,0.57456531,1953.7,1953.1,0.82209416]
[1771776042358,0.5817229,1953.5,1953.1,0.25611]
[1771776042750,0.5817229,1953.5,1952.8,0.56598416]
[1771776043454,0.5817229,1953.5,1952.9,0.56598416]
[1771776043953,0.5817229,1953.5,1952.9,0.57114763]
[1771776050859,0.5817229,1953.7,1953.1,0.56598416]
[1771776053463,0.5817229,1953.7,1952.9,0.57114763]
[1771776061868,0.5817229,1953.5,1952.9,0.57114763]
[1771776065670,0.5817229,1953.7,1952.9,0.57114763]
[1771776065875,0.5817229,1953.7,1953.1,0.56598416]
[1771776067670,0.5817229,1953.8,1953.1,0.56598416]
[1771776067871,0.58789308,1954.0,1953.3,0.56598416]
[1771776068572,0.58789308,1954.0,1953.5,0.56330238]
[1771776074876,0.00617018,1954.0,1953.5,0.56330238]
[1771776075476,0.57079698,1954.0,1953.5,0.56330238]
[1771776097294,0.57079698,1954.0,1953.2,0.60061963]
[1771776102999,0.00617018,1954.0,1953.4,0.60096744]
[1771776103603,0.57790206,1954.0,1953.4,0.60096744]
[1771776104099,0.57173188,1953.5,1952.4,24.0445638]
[1771776104303,0.57173188,1953.5,1952.8,3.7670511]
[1771776104803,0.57173188,1953.5,1952.6,0.60096744]
[1771776105198,0.57173188,1953.5,1952.6,0.60569564]
[1771776106700,0.57173188,1953.5,1952.6,0.0047282]
[1771776107805,0.57173188,1953.3,1952.6,0.0047282]
[1771776109903,1.7457656,1953.3,1952.6,0.60569564]
[1771776110209,0.57173188,1953.2,1952.6,0.60569564]
[1771776112006,0.57173188,1953.2,1952.7,0.60096744]
[1771776112508,0.57173188,1953.2,1952.8,0.60096744]
[1771776113411,0.57173188,1953.2,1952.7,0.60096744]
[1771776113606,0.57173188,1953.2,1952.8,0.60096744]
[1771776115409,0.57173188,1953.3,1952.8,0.60096744]
[1771776115909,0.57173188,1953.3,1953.0,0.60096744]
[1771776117209,0.57173188,1953.3,1952.7,0.60096744]
[1771776117409,0.57173188,1953.3,1952.9,0.60096744]
[1771776117609,0.57173188,1953.3,1952.8,3.16016744]
[1771776117803,0.57173188,1953.3,1952.9,2.5592]
[1771776118408,0.57173188,1953.3,1952.9,3.16016744]
[1771776119003,40.8,1953.6,1952.6,0.0047282]
[1771776119004,0.57173188,1953.5,1953.0,0.60096744]
[1771776119209,0.57173188,1953.5,1953.2,0.60096744]
[1771776119608,0.57173188,1953.5,1952.7,0.25612]
[1771776119814,0.57173188,1953.9,1953.0,0.60096744]
[1771776120212,0.57173188,1953.8,1953.1,0.60096744]
[1771776120712,0.57173188,1953.8,1953.2,0.60096744]
[1771776122313,0.57173188,1953.8,1953.2,3.16016744]
[1771776122609,0.57173188,1953.8,1953.3,0.60096744]
[1771776123112,0.57173188,1953.8,1953.3,3.16016744]
[1771776124012,0.57173188,1953.8,1952.8,0.60096744]
[1771776124211,40.80617018,1954.0,1952.8,0.60096744]
[1771776124212,0.57173188,1953.4,1952.8,0.60096744]
[1771776124412,0.57173188,1953.4,1952.9,0.60096744]
[1771776124913,0.57173188,1953.4,1953.2,2.21281286]
[1771776125314,0.57173188,1953.4,1953.0,0.60096744]
[1771776125514,0.57173188,1953.4,1953.2,2.21281286]
[1771776125816,0.57173188,1953.4,1952.8,0.60096744]
[1771776126018,0.57173188,1953.4,1953.0,0.60096744]
[1771776126519,0.57173188,1953.4,1952.7,0.25612]
[1771776126520,0.57173188,1953.7,1953.2,0.60096744]
[1771776126917,0.57173188,1953.7,1952.8,0.60096744]
[1771776127119,0.57173188,1953.7,1952.7,0.25612]
[1771776127120,0.57173188,1953.7,1953.0,0.60096744]
[1771776127618,0.57173188,1953.7,1953.1,2.21281286]
[1771776128014,0.57173188,1953.7,1953.2,0.58999497]
[1771776128221,0.57173188,1953.7,1953.3,0.58999497]
[1771776128518,0.57173188,1953.7,1953.2,2.80280783]
[1771776129921,0.57173188,1953.7,1953.3,2.21281286]
[1771776131817,0.57173188,1953.7,1953.4,2.21281286]
[1771776132019,0.57173188,1953.7,1953.2,0.58999497]
[1771776132219,0.57173188,1953.7,1953.3,2.21281286]
[1771776132719,0.57173188,1953.7,1953.4,2.21281286]
[1771776132921,0.57173188,1953.7,1953.2,0.58999497]
[1771776133418,0.57173188,1953.7,1953.3,2.21281286]
[1771776133613,0.57173188,1953.7,1953.2,0.58999497]
[1771776133818,0.56231683,1953.9,1953.4,0.58999497]
[1771776134017,0.56231683,1953.8,1953.4,0.58999497]
[1771776134219,0.56231683,1953.8,1953.5,2.79572299]
[1771776134414,0.51699947,1953.9,1953.5,0.58291013]
[1771776134820,0.51699947,1953.9,1953.7,2.21281286]
[1771776135124,0.00617018,1954.0,1953.6,0.58291013]
[1771776135324,0.00617018,1954.0,1953.7,2.21281286]
[1771776135624,40.8,1954.1,1953.6,0.58291013]
[1771776135828,6.36709975,1954.0,1953.7,2.21281286]
[1771776136125,1.17403372,1954.2,1953.7,0.60653904]
[1771776136325,6.36683239,1954.1,1953.8,2.21281286]
[1771776136526,4.29476814,1954.4,1953.7,0.60653904]
[1771776136824,47.16544446,1954.3,1953.7,0.60653904]
[1771776137124,6.36544446,1954.2,1953.7,0.60653904]
[1771776140225,0.00590457,1954.4,1953.7,0.60653904]
[1771776140520,40.80590457,1954.4,1953.7,0.60653904]
[1771776140726,0.00590457,1954.4,1953.7,0.60653904]
[1771776147926,0.0033387,1954.7,1953.9,0.59809268]
[1771776148927,0.00824308,1954.7,1953.9,0.59809268]
[1771776151828,0.01575953,1954.6,1953.9,0.59809268]
[1771776152033,0.01575953,1954.6,1954.1,0.59884336]
[1771776152234,0.01575953,1954.6,1954.1,0.60254131]
[1771776153032,0.00490438,1954.7,1954.1,0.60254131]
[1771776158040,1.17814459,1954.7,1954.1,0.60254131]
[1771776174758,0.00490438,1954.7,1954.1,0.60254131]
[1771776175262,0.00490438,1954.7,1954.2,0.64112972]
[1771776180166,0.00490438,1954.7,1954.4,0.6479253]
[1771776182268,41.97324021,1955.2,1954.4,0.6479253]
[1771776182571,6.3344787,1955.1,1954.4,0.6479253]
[1771776182772,41.97324021,1955.2,1954.4,0.6479253]
[1771776183269,1.1778881,1955.2,1954.4,0.6479253]
[1771776183668,0.00464789,1955.2,1954.6,0.64622608]
[1771776185675,5.44602167,1955.9,1955.0,0.64806003]
[1771776185874,1.17324021,1955.7,1955.0,0.64806003]
[1771776186175,40.8,1955.6,1955.0,0.64806003]
[1771776186571,1.17324021,1955.7,1955.0,0.64806003]
[1771776186771,1.17324021,1955.9,1955.0,0.64806003]
[1771776186772,1.17324021,1955.5,1955.0,0.64806003]
[1771776187073,1.1773013,1955.5,1955.0,0.64806003]
[1771776191879,0.00406109,1955.5,1955.0,0.64806003]
[1771776195283,1.17324021,1955.9,1955.1,0.64606092]
[1771776196181,1.17825889,1955.9,1955.1,0.64606092]
[1771776200085,0.00501868,1955.9,1955.1,0.64606092]
[1771776200284,1.17825889,1955.9,1955.1,0.64606092]
[1771776204886,0.00501868,1955.9,1955.1,0.64606092]
[1771776205093,0.00501868,1955.9,1955.4,0.64657239]
[1771776205292,1.17825889,1955.9,1955.4,0.64657239]
[1771776205594,1.17825889,1955.9,1954.3,17.1404728]
[1771776205595,1.17324021,1955.5,1954.7,0.64657239]
[1771776205890,1.17324021,1955.1,1954.7,0.64657239]
[1771776206392,1.17324021,1955.1,1954.6,0.89919671]
[1771776206891,1.17324021,1955.1,1954.7,0.64332671]
[1771776207191,1.17324021,1955.3,1954.7,0.64332671]
[1771776208193,1.17324021,1955.0,1954.5,0.61930211]
[1771776208894,1.17324021,1954.8,1954.2,0.61930211]
[1771776210090,1.17324021,1954.3,1953.9,0.62276394]
[1771776210298,1.17324021,1954.3,1953.6,0.62276394]
[1771776210593,1.17324021,1954.8,1953.6,0.62276394]
[1771776210594,1.17324021,1954.5,1953.6,0.62276394]
[1771776211199,1.17721144,1954.5,1953.6,0.62854908]
[1771776215196,0.00397123,1954.5,1953.6,0.62854908]
[1771776220306,1.17753761,1954.5,1953.6,0.62854908]
[1771776221405,0.00397123,1954.5,1953.6,0.62854908]
[1771776224002,1.17356638,1954.3,1953.6,0.62854908]
[1771776227509,0.00397123,1954.5,1953.6,0.62854908]
[1771776228514,1.17753761,1954.5,1953.6,0.62854908]
[1771776230914,0.00397123,1954.5,1953.6,0.62854908]
[1771776237322,6.32362313,1954.4,1953.6,0.62854908]
[1771776237625,0.00397123,1954.5,1953.6,0.62854908]
[1771776237820,6.32843811,1954.4,1953.6,0.62854908]
[1771776238024,1.17753761,1954.5,1953.6,0.62854908]
[1771776238224,6.32845527,1954.4,1953.6,0.62854908]
[1771776238525,6.32845527,1954.3,1953.6,0.62854908]
[1771776238725,1.17753761,1954.5,1953.6,0.62854908]
[1771776238926,6.33494446,1954.4,1953.6,0.62854908]
[1771776239228,6.33494446,1954.3,1953.6,0.62854908]
[1771776239427,5.45031907,1954.5,1953.6,0.62854908]
[1771776239627,6.3390939,1954.4,1953.6,0.62854908]
[1771776239923,6.3390939,1954.3,1953.6,0.62854908]
[1771776240124,5.45031907,1954.5,1953.6,0.62854908]
[1771776240330,6.33912046,1954.4,1953.6,0.62854908]
[1771776240521,6.33912046,1954.3,1953.6,0.62854908]
[1771776240725,6.33912046,1954.2,1953.6,0.62854908]
[1771776240927,5.45031907,1954.5,1953.6,0.62854908]
[1771776241227,6.33976242,1954.4,1953.6,0.62854908]
[1771776241426,6.33976242,1954.3,1953.6,0.62854908]
[1771776241631,6.33976242,1954.2,1953.6,0.62854908]
[1771776241830,4.27675269,1954.5,1953.6,0.62854908]
[1771776242027,6.33984477,1954.4,1953.6,0.62854908]
[1771776242230,6.33984477,1954.3,1953.6,0.62854908]
[1771776242430,6.33984477,1954.2,1953.6,0.62854908]
[1771776242631,4.27675269,1954.5,1953.6,0.62854908]
[1771776242833,6.34003918,1954.4,1953.6,0.62854908]
[1771776243031,6.34003918,1954.3,1953.6,0.62854908]
[1771776243333,6.34003918,1954.2,1953.6,0.62854908]
[1771776243535,1.17356638,1954.4,1953.6,0.62854908]
[1771776243731,6.3403441,1954.3,1953.6,0.62854908]
[1771776244033,6.3403441,1954.2,1953.6,0.62854908]
[1771776244231,1.17356638,1954.4,1953.6,0.62854908]
[1771776244432,6.34071973,1954.3,1953.6,0.62854908]
[1771776244731,0.00397123,1954.5,1953.6,0.62854908]
[1771776244925,6.34045971,1954.4,1953.6,0.62854908]
[1771776245131,6.34045971,1954.3,1953.6,0.62854908]
[1771776245433,6.34045971,1954.2,1953.6,0.62854908]
[1771776245626,4.27675269,1954.5,1953.6,0.62854908]
[1771776245825,6.34127567,1954.4,1953.6,0.62854908]
[1771776246025,6.34127567,1954.3,1953.6,0.62854908]
[1771776246332,6.34127567,1954.2,1953.6,0.62854908]
[1771776246632,4.27675269,1954.5,1953.6,0.62854908]
[1771776246834,6.34190562,1954.4,1953.6,0.62854908]
[1771776247034,6.34190562,1954.3,1953.6,0.62854908]
[1771776247334,6.34190562,1954.2,1953.6,0.62854908]
[1771776247634,5.45031907,1954.5,1953.6,0.62854908]
[1771776247835,6.3428623,1954.4,1953.6,0.62854908]
[1771776248037,6.3428623,1954.3,1953.6,0.62854908]
[1771776248231,6.3428623,1954.2,1953.6,0.62854908]
[1771776248435,4.27278146,1954.4,1953.6,0.62854908]
[1771776248627,6.34410951,1954.3,1953.6,0.62854908]
[1771776248831,6.34410951,1954.2,1953.6,0.62854908]
[1771776249034,4.27278146,1954.4,1953.6,0.62854908]
[1771776249234,6.34411321,1954.3,1953.6,0.62854908]
[1771776249536,6.34411321,1954.2,1953.6,0.62854908]
[1771776249738,4.27278146,1954.4,1953.6,0.62854908]
[1771776249935,6.34533973,1954.3,1953.6,0.62854908]
[1771776250136,6.34533973,1954.2,1953.6,0.62854908]
[1771776250338,6.34533973,1954.1,1953.6,0.62854908]
[1771776250539,4.27278146,1954.4,1953.6,0.62854908]
[1771776250733,6.34687166,1954.3,1953.6,0.62854908]
[1771776250933,6.34687166,1954.2,1953.6,0.62854908]
[1771776251137,4.27278146,1954.4,1953.6,0.62854908]
[1771776251438,6.34682239,1954.3,1953.6,0.62854908]
[1771776251641,6.34682239,1954.2,1953.6,0.62854908]
[1771776251939,4.27278146,1954.4,1953.6,0.62854908]
[1771776252139,6.34257593,1954.3,1953.6,0.62854908]
[1771776252341,6.34257593,1954.2,1953.6,0.62854908]
[1771776252542,4.27278146,1954.4,1953.6,0.62854908]
[1771776252735,6.34262598,1954.3,1953.6,0.62854908]
[1771776252939,6.34262598,1954.2,1953.6,0.62854908]
[1771776253140,4.27278146,1954.4,1953.6,0.62854908]
[1771776253441,6.34263139,1954.3,1953.6,0.62854908]
[1771776253638,6.34263139,1954.2,1953.6,0.62854908]
[1771776253835,4.27278146,1954.4,1953.6,0.62854908]
[1771776254040,6.34269087,1954.3,1953.6,0.62854908]
[1771776254240,6.34269087,1954.2,1953.6,0.62854908]
[1771776254442,4.27675269,1954.5,1953.6,0.62854908]
[1771776254638,6.34226985,1954.4,1953.6,0.62854908]
[1771776254942,6.34226985,1954.3,1953.6,0.62854908]
[1771776255143,6.34227927,1954.2,1953.6,0.62854908]
[1771776255344,4.27675269,1954.5,1953.6,0.62854908]
[1771776255542,6.34225931,1954.4,1953.6,0.62854908]
[1771776255742,6.34225931,1954.3,1953.6,0.62854908]
[1771776255942,6.34225931,1954.2,1953.6,0.62854908]
[1771776256143,4.27675269,1954.5,1953.6,0.62854908]
[1771776256439,6.3422603,1954.4,1953.6,0.62854908]
[1771776256741,6.3422603,1954.3,1953.6,0.62854908]
[1771776256941,6.3422603,1954.2,1953.6,0.62854908]
[1771776257138,0.00397123,1954.5,1953.6,0.62854908]
[1771776257344,6.34223073,1954.4,1953.6,0.62854908]
[1771776257644,6.34223073,1954.3,1953.6,0.62854908]
[1771776257844,0.00397123,1954.5,1953.6,0.62854908]
[1771776258046,6.34220948,1954.4,1953.6,0.62854908]
[1771776258245,6.34220948,1954.3,1953.6,0.62854908]
[1771776258443,0.00397123,1954.5,1953.6,0.62854908]
[1771776258743,6.34219477,1954.4,1953.6,0.62854908]
[1771776258943,6.34219477,1954.3,1953.6,0.62854908]
[1771776259144,0.00397123,1954.5,1953.6,0.62854908]
[1771776259343,6.34221245,1954.4,1953.6,0.62854908]
[1771776259642,6.34221245,1954.3,1953.6,0.62854908]
[1771776259845,0.00397123,1954.5,1953.6,0.62854908]
[1771776260145,6.34221193,1954.4,1953.6,0.62854908]
[1771776260340,6.34221193,1954.3,1953.6,0.62854908]
[1771776260542,0.00397123,1954.5,1953.6,0.62854908]
[1771776260742,6.34223424,1954.4,1953.6,0.62854908]
[1771776260942,6.34223424,1954.3,1953.6,0.62854908]
[1771776261138,0.00397123,1954.5,1953.6,0.62854908]
[1771776261342,6.34218105,1954.4,1953.6,0.62854908]
[1771776261545,6.34218105,1954.3,1953.6,0.62854908]
[1771776261746,0.00397123,1954.5,1953.6,0.62854908]
[1771776261947,6.34223274,1954.4,1953.6,0.62854908]
[1771776262148,6.34223274,1954.3,1953.6,0.62854908]
[1771776262350,0.00397123,1954.5,1953.6,0.62854908]
[1771776262649,6.34223819,1954.4,1953.6,0.62854908]
[1771776262850,6.34223819,1954.3,1953.6,0.62854908]
[1771776263050,0.00397123,1954.5,1953.6,0.62854908]
[1771776263349,6.34224235,1954.4,1953.6,0.62854908]
[1771776263550,6.34224235,1954.3,1953.6,0.62854908]
[1771776263849,0.00397123,1954.5,1953.6,0.62854908]
[1771776264050,6.34236226,1954.4,1953.6,0.62854908]
[1771776264346,6.34236226,1954.3,1953.6,0.62854908]
[1771776264549,0.00397123,1954.5,1953.6,0.62854908]
[1771776264750,6.3426983,1954.4,1953.6,0.62854908]
[1771776264950,6.3426983,1954.3,1953.6,0.62854908]
[1771776265151,0.00397123,1954.5,1953.6,0.62854908]
[1771776265350,6.34304725,1954.4,1953.6,0.62854908]
[1771776265550,6.34304725,1954.3,1953.6,0.62854908]
[1771776265750,0.00397123,1954.5,1953.6,0.62854908]
[1771776266050,6.34305435,1954.4,1953.6,0.62854908]
[1771776266249,6.34305435,1954.3,1953.6,0.62854908]
[1771776266450,0.00397123,1954.5,1953.6,0.62854908]
[1771776266651,6.34347156,1954.4,1953.6,0.62854908]
[1771776266854,6.34347156,1954.3,1953.6,0.62854908]
[1771776267048,4.27675269,1954.5,1953.6,0.62854908]
[1771776267254,6.34347156,1954.4,1953.6,0.62854908]
[1771776267454,6.34347156,1954.3,1953.6,0.62854908]
[1771776267654,4.27675269,1954.5,1953.6,0.62854908]
[1771776267957,6.34343773,1954.4,1953.6,0.62854908]
[1771776268155,6.34343773,1954.3,1953.6,0.62854908]
[1771776268453,4.27675269,1954.5,1953.6,0.62854908]
[1771776268654,6.34337288,1954.4,1953.6,0.62854908]
[1771776268853,6.34337288,1954.3,1953.6,0.62854908]
[1771776269054,4.27675269,1954.5,1953.6,0.62854908]
[1771776269253,6.34333397,1954.4,1953.6,0.62854908]
[1771776269453,6.34333397,1954.3,1953.6,0.62854908]
[1771776269654,4.27675269,1954.5,1953.6,0.62854908]
[1771776269854,6.34314038,1954.4,1953.6,0.62854908]
[1771776270055,6.34314038,1954.3,1953.6,0.62854908]
[1771776270256,4.27675269,1954.5,1953.6,0.62854908]
[1771776270456,6.34304386,1954.4,1953.6,0.62854908]
[1771776270656,6.34304386,1954.3,1953.6,0.62854908]
[1771776270850,4.27675269,1954.5,1953.6,0.62854908]
[1771776271054,6.34304386,1954.4,1953.6,0.62854908]
[1771776271251,6.34304386,1954.3,1953.6,0.62854908]
[1771776271460,4.27675269,1954.5,1953.6,0.62854908]